fUSD/lending_fUSD_20260106
["ID","MTS","AMOUNT","RATE_DAILY","PERIOD"]
[400512352,1767685851879,-395.107214,0.00030137,31]
[400512353,1767685851890,-395.107214,0.00030137,31]
[400512354,1767685851901,-151.0,0.00030137,31]
[400512355,1767685851911,-395.107214,0.00030137,31]
[400512356,1767685851922,-151.0,0.00030137,31]
[400512357,1767685851932,-395.107214,0.00030137,31]
[400512358,1767685851942,-156.127335,0.00030137,31]
[400512359,1767685851953,-395.107214,0.00030137,31]
[400512360,1767685851963,-395.107214,0.00030137,31]
[400512361,1767685851973,-395.107214,0.00030137,31]
[400512362,1767685851984,-395.107214,0.00030137,31]
[400512363,1767685851994,-395.107214,0.00030137,31]
[400512364,1767685852016,-395.107214,0.00030137,31]
[400512365,1767685852027,-395.107214,0.00030137,31]
[400512366,1767685852039,-395.107214,0.00030137,31]
[400512367,1767685852049,-172.552251,0.00030137,31]
[400512368,1767685852061,-395.107216,0.00030137,31]
[400512369,1767685852072,-2925.4341315,0.00030137,31]
[400512370,1767685852131,-931.67936618,0.00030137,31]
[400512371,1767685852149,-679.39425132,0.00030137,31]
[400512372,1767685852161,-172.552251,0.00030137,31]
[400512373,1767685852172,-349.30499926,0.00030137,31]
[400512374,1767685852186,-1203.37088605,0.00030137,31]
[400512375,1767685852200,-611.68963455,0.00030137,31]
[400512376,1767685852213,-433.02848958,0.00030137,31]
[400512377,1767685852227,-274.18,0.00030137,31]
[400512378,1767685852241,-1185.3213471,0.00030137,31]
[400512379,1767685852254,-479.61239246,0.00030137,31]
[400512380,1767685852267,-172.552251,0.00030137,31]
[400512381,1767685852280,-1358.20762334,0.00030137,31]
[400512382,1767685852295,-265.92579989,0.00030137,31]
[400512383,1767685852309,-665.7042,0.00030137,31]
[400512384,1767685961615,-500.0,0.00016681,2]
[400512385,1767685961648,-314.43499979,0.00016681,2]
[400512386,1767685961676,-27.30500021,0.00016681,2]
[400512388,1767685979790,-472.69499979,0.00016681,2]
[400512389,1767685979820,-351.31327965,0.00016681,2]
[400512390,1767685979850,-94729.5773,0.00016682,2]
[400512391,1767685979873,-1000.0,0.00016822,2]
[400512392,1767685979896,-2500.0,0.00016822,2]
[400512393,1767685979922,-536.8,0.0001799,2]
[400512394,1767685979948,-304.94,0.00018,7]
[400512395,1767685979972,-536.8,0.00019336,2]
[400512396,1767685979995,-300.0,0.00019688,2]
[400512397,1767685980017,-2878.94495203,0.00020365,2]
[400512398,1767685980042,-536.8,0.00020683,2]
[400512399,1767685980065,-476.79,0.00020981,2]
[400512400,1767685980088,-476.79,0.00021255,2]
[400512401,1767685980110,-159.71,0.00021529,2]
[400512402,1767685980134,-150.0,0.00021918,2]
[400512403,1767685980156,-150.0,0.00021918,2]
[400512404,1767685980180,-175.84813518,0.00021973,2]
[400512405,1767685980204,-536.8,0.00022029,2]
[400512406,1767685980227,-800.0,0.000221,8]
[400512407,1767685980251,-800.0,0.000221,8]
[400512408,1767685980274,-800.0,0.000221,8]
[400512409,1767685980298,-800.0,0.000221,8]
[400512410,1767685980320,-1204.815,0.00022574,2]
[400512411,1767685980542,-914.0,0.00022574,2]
[400512412,1767685980564,-243.342,0.00023099,2]
[400512413,1767685980586,-151.0,0.00023099,2]
[400512414,1767685980607,-151.047,0.00023099,2]
[400512415,1767685980631,-295.13914077,0.00023259,2]
[400512416,1767685980657,-536.8,0.00023375,2]
[400512417,1767685980679,-2000.0,0.000241,2]
[400512418,1767685980703,-30.04819258,0.00024722,2]
[400512420,1767686175775,1000.0,0.000327,120]
[400512422,1767686232975,302.1,0.0001454,2]
[400512423,1767686233384,302.1,0.00015305,2]
[400512424,1767686304362,1000.0,0.000327,120]
[400512425,1767686453751,207.3682,0.00032624,120]
[400512435,1767687031462,-302.1,0.00016071,2]
[400512436,1767687031472,-208.80314189,0.00016071,2]
[400512437,1767687031482,-500.0,0.00016513,2]
[400512438,1767687031491,-302.1,0.00016836,2]
[400512439,1767687031500,-1000.0,0.00017515,2]
[400512440,1767687031509,-302.1,0.00017601,2]
[400512441,1767687031519,-500.0,0.00017614,2]
[400512442,1767687031528,-260.06429066,0.00017614,2]
[400512443,1767687031538,-419.68157509,0.00017614,2]
[400512444,1767687031549,-80.31842491,0.00017614,2]
[400512445,1767687031560,-151.0,0.00017657,2]
[400512446,1767687031569,-151.0,0.00017657,2]
[400512447,1767687031579,-537.0,0.00017677,2]
[400512448,1767687031589,-1200.0,0.00017677,2]
[400512449,1767687031598,-300.0,0.00017677,2]
[400512450,1767687031610,-1965.45,0.00017678,2]
[400512451,1767687031619,-9999.99,0.00017678,2]
[400512452,1767687031629,-999.99,0.00017678,2]
[400512453,1767687031638,-2889.5,0.00017678,2]
[400512454,1767687031647,-9999.99,0.00017678,2]
[400512455,1767687031657,-3276.76,0.00017678,2]
[400512456,1767687031667,-9999.99,0.00017678,2]
[400512457,1767687031677,-150.99,0.00017678,2]
[400512458,1767687031688,-499.99,0.00017678,2]
[400512459,1767687031697,-250.0,0.00017678,2]
[400512460,1767687031706,-151.0,0.00017681,2]
[400512461,1767687031716,-151.0,0.00017681,2]
[400512462,1767687031725,-151.0,0.00017988,2]
[400512463,1767687031735,-500.0,0.00017988,2]
[400512464,1767687031744,-500.0,0.00017988,2]
[400512465,1767687031754,-151.0,0.00017988,2]
[400512466,1767687031763,-500.0,0.00017988,2]
[400512467,1767687031772,-161.39047781,0.00017988,2]
[400512468,1767687031781,-624.61038726,0.00017988,2]
[400512469,1767687031790,-500.0,0.00017988,2]
[400512470,1767687031799,-41.8245736,0.00017988,2]
[400512471,1767687031811,-595.15685643,0.00017988,2]
[400512472,1767687031820,-517.44328219,0.00017999,2]
[400512473,1767687031830,-568.53922051,0.00017999,2]
[400512474,1767687031839,-274.45,0.00018,7]
[400512476,1767687031848,-250.2965615,0.00018059,2]
[400512477,1767687031859,-60.3034385,0.00018059,2]
[400512478,1767687031868,-302.1,0.00018366,2]
[400512479,1767687031877,-302.1,0.00019132,2]
[400512480,1767687031886,-151.36064087,0.00019294,2]
[400512481,1767687031897,-148.63935913,0.00019294,2]
[400512483,1767687031907,-147.43721857,0.00019389,2]
[400512485,1767687031918,-1532.56278143,0.00019389,2]
[400512487,1767687031927,-310.6,0.00019399,2]
[400512489,1767687031937,-302.1,0.00019897,2]
[400512491,1767687031945,-302.1,0.00020662,2]
[400512493,1767687031955,-310.6,0.00020739,2]
[400512495,1767687031967,-307.68523803,0.000211,2]
[400512497,1767687031976,-2120.0,0.00021266,2]
[400512499,1767687031985,-302.1,0.00021427,2]
[400512502,1767687031999,-500.0,0.00021427,2]
[400512504,1767687032013,-506.248488,0.00021569,2]
[400512506,1767687032023,-310.6,0.00022079,2]
[400512508,1767687032035,-800.0,0.000221,8]
[400512510,1767687032044,-800.0,0.000221,8]
[400512512,1767687032054,-800.0,0.000221,8]
[400512513,1767687032064,-679.61957172,0.000221,8]
[400512514,1767687032077,-120.38042828,0.000221,8]
[400512515,1767687032088,-383.57724871,0.000221,8]
[400512516,1767687032099,-416.42275129,0.000221,8]
[400512517,1767687032109,-800.0,0.000221,8]
[400512518,1767687032119,-287.15723261,0.000221,8]
[400512519,1767687032139,-512.84276739,0.000221,8]
[400512520,1767687032150,-675.15723261,0.000221,8]
[400512521,1767687032162,-124.84276739,0.000221,8]
[400512522,1767687032172,-302.1,0.00022193,2]
[400512523,1767687032182,-302.1,0.00022958,2]
[400512524,1767687032192,-298.76340192,0.00023096,2]
[400512525,1767687032207,-201.23659808,0.00023096,2]
[400512526,1767687032216,-382.63759487,0.00023096,2]
[400512527,1767687032228,-117.36240513,0.00023096,2]
[400512528,1767687032238,-500.0,0.00023096,2]
[400512529,1767687032247,-500.0,0.00023096,2]
[400512530,1767687032257,-500.0,0.00023096,2]
[400512531,1767687032268,-500.0,0.00023096,2]
[400512532,1767687032277,-500.0,0.00023096,2]
[400512533,1767687032286,-162.21269235,0.00023096,2]
[400512534,1767687032296,-500.0,0.00023096,2]
[400512535,1767687032305,-500.0,0.00023096,2]
[400512536,1767687032315,-500.0,0.00023096,2]
[400512537,1767687032325,-60.42490252,0.00023096,2]
[400512541,1767687037535,-75721.2133,0.00017578,2]
[400512542,1767687037546,-354.25272715,0.00023096,2]
[400512543,1767687037558,-500.0,0.00023096,2]
[400512544,1767687037568,-240.2458547,0.00023096,2]
[400512545,1767687037581,-1390.117,0.00023099,2]
[400512546,1767687037592,-1405.0,0.00023099,2]
[400512547,1767687037603,-616.385,0.00023099,2]
[400512548,1767687037614,-1266.0,0.00023099,2]
[400512549,1767687037625,-435.51,0.00023099,2]
[400512550,1767687037635,-6549.0,0.00023099,2]
[400512551,1767687037646,-150.313,0.00023099,2]
[400512552,1767687037659,-2435.0,0.00023099,2]
[400512553,1767687037670,-1260.829,0.00023189,3]
[400512554,1767687037681,-310.6,0.00023419,2]
[400512555,1767687037692,-302.1,0.00023723,2]
[400512556,1767687037703,-302.1,0.00024488,2]
[400512557,1767687037713,-310.6,0.00024759,2]
[400512558,1767687037723,-302.1,0.00025254,2]
[400512559,1767687037734,-1000.0,0.00025324,2]
[400512560,1767687037746,-8264.31,0.0002545,2]
[400512561,1767687037756,-999.0,0.00025481,3]
[400512562,1767687037767,-5000.0,0.00025622,2]
[400512563,1767687037777,-211.92,0.00025643,2]
[400512564,1767687037788,-6366.1,0.00025949,2]
[400512565,1767687037800,-7486.11,0.00026007,2]
[400512566,1767687037811,-302.1,0.00026019,2]
[400512567,1767687037822,-1492.545,0.00026099,2]
[400512568,1767687037834,-310.6,0.000261,2]
[400512569,1767687037845,-672.1,0.00026103,2]
[400512570,1767687037855,-302.1,0.00026784,2]
[400512571,1767687037866,-227.20218813,0.00027397,2]
[400512572,1767687037877,-500.0,0.00027397,20]
[400512573,1767687037888,-310.6,0.0002744,2]
[400512574,1767687037899,-302.1,0.00027549,2]
[400512575,1767687037910,-2000.0,0.000278,2]
[400512576,1767687037921,-166.66,0.00027921,2]
[400512577,1767687037932,-168.0,0.00028305,2]
[400512579,1767687037943,-302.1,0.00028315,2]
[400512581,1767687037954,-1000.0,0.00028489,2]
[400512583,1767687037969,-1000.0,0.00028763,2]
[400512585,1767687037980,-310.6,0.0002878,2]
[400512587,1767687037991,-166.66,0.00028843,2]
[400512589,1767687038003,-823.35,0.000289,14]
[400512591,1767687038013,-168.0,0.00029036,2]
[400512593,1767687038025,-302.1,0.0002908,2]
[400512596,1767687038040,-166.66,0.00029764,2]
[400512599,1767687038052,-505.0,0.00029877,2]
[400512601,1767687038066,-300.0,0.0003007,2]
[400512603,1767687038079,-310.6,0.0003012,2]
[400512606,1767687038091,-169.06116412,0.00030137,7]
[400512608,1767687038103,-771.0,0.00030173,2]
[400512610,1767687038115,-168.0,0.00030305,2]
[400512612,1767687038126,-152.0,0.0003033,3]
[400512614,1767687038138,-160.2,0.000304,30]
[400512616,1767687038148,-168.0,0.00030417,2]
[400512618,1767687038159,-200.0,0.0003047,2]
[400512620,1767687038169,-168.0,0.00030589,2]
[400512622,1767687038179,-150.0,0.00030603,2]
[400512624,1767687038190,-6171.37558444,0.00030627,2]
[400512626,1767687038199,-166.66,0.00030686,2]
[400512628,1767687038210,-771.0,0.00030777,2]
[400512631,1767687038220,-500.0,0.00030882,14]
[400512633,1767687038232,-164.41979281,0.00030981,7]
[400512635,1767687038242,-771.0,0.00031047,2]
[400512637,1767687038252,-900.0,0.00031156,14]
[400512639,1767687038265,-1200.0,0.00031156,14]
[400512641,1767687038276,-173.73,0.0003137,2]
[400512643,1767687038288,-183.44,0.0003137,2]
[400512645,1767687038301,-771.0,0.00031432,2]
[400512646,1767687038312,-505.0,0.00031443,3]
[400512647,1767687038322,-310.6,0.0003146,2]
[400512648,1767687038332,-2000.0,0.000315,2]
[400512649,1767687038342,-166.66,0.00031608,2]
[400512650,1767687038352,-1000.0,0.00031654,2]
[400512651,1767687038362,-500.0,0.00031704,14]
[400512652,1767687038372,-478.16,0.00031723,30]
[400512653,1767687038381,-971.36,0.00031765,2]
[400512654,1767687038391,-3272.81909332,0.00031816,2]
[400512655,1767687038401,-900.0,0.00031978,14]
[400512656,1767687038412,-1200.0,0.00031978,14]
[400512657,1767687038422,-771.0,0.00031991,2]
[400512658,1767687038433,-1666.0,0.00032191,5]
[400512659,1767687038443,-202.71290006,0.000323,2]
[400512660,1767687038454,-500.0,0.00032526,14]
[400512661,1767687038465,-166.66,0.00032529,2]
[400512663,1767687038475,-2000.0,0.00032636,3]
[400512665,1767687038486,-2000.0,0.00032636,3]
[400512667,1767687038496,-2005.319,0.00032636,3]
[400512669,1767687038506,-2000.0,0.00032636,3]
[400512671,1767687038516,-200.0,0.000327,2]
[400512673,1767687038527,-200.0,0.000327,2]
[400512675,1767687038537,-2443.446,0.00032766,2]
[400512678,1767687038548,-300.0,0.0003277,2]
[400512680,1767687038559,-5726.91057625,0.00032776,2]
[400512682,1767687038569,-900.0,0.000328,14]
[400512684,1767687038579,-1200.0,0.000328,14]
[400512686,1767687038590,-150.0,0.000328,7]
[400512688,1767687038602,-150.0,0.000328,7]
[400512690,1767687038612,-150.0,0.000328,7]
[400512692,1767687038622,-150.0,0.000328,7]
[400512694,1767687038632,-150.0,0.000328,7]
[400512696,1767687038643,-150.0,0.000328,7]
[400512698,1767687038653,-150.0,0.000328,7]
[400512700,1767687038663,-150.0,0.000328,7]
[400512702,1767687038676,-150.0,0.000328,7]
[400512704,1767687038686,-150.0,0.000328,7]
[400512706,1767687038697,-3294.04195201,0.000328,2]
[400512708,1767687038707,-160.2,0.000328,30]
[400512711,1767687038717,-150.0,0.000328,7]
[400512713,1767687038727,-310.6,0.000328,3]
[400512715,1767687038738,-3337.2646808,0.00032839,2]
[400512717,1767687038749,-500.0,0.00032865,45]
[400512719,1767687038759,-818.24,0.00032866,2]
[400512721,1767687038774,-34140.9563674,0.00032867,3]
[400512723,1767687038785,-1984.62739418,0.0003287,2]
[400512726,1767687038799,-297.12240185,0.0003287,2]
[400512729,1767687038816,-975.58264959,0.0003287,2]
[400512731,1767687038829,-958.17262852,0.0003287,2]
[400512733,1767687038841,-924.61620087,0.0003287,2]
[400512735,1767687038854,-803.7588,0.0003287,2]
[400512738,1767687038871,-27279.57661794,0.0003287,2]
[400512740,1767687038882,-818.24,0.0003287,2]
[400512742,1767687038893,-151.0,0.00032874,14]
[400512745,1767687038906,-4071.81223809,0.00032875,30]
[400512747,1767687038916,-500.0,0.00032875,45]
[400512749,1767687038927,-1000.0,0.00032876,2]
[400512751,1767687038938,-1000.0,0.00032876,2]
[400512753,1767687038949,-1000.0,0.00032876,2]
[400512755,1767687038961,-1000.0,0.00032876,2]
[400512757,1767687038972,-1076.95721268,0.00032876,2]
[400512759,1767687038982,-500.0,0.00032876,2]
[400512761,1767687038993,-417.82160098,0.00032876,2]
[400512763,1767687039004,-500.0,0.00032876,2]
[400512765,1767687039016,-434.53550809,0.00032876,2]
[400512767,1767687039026,-500.0,0.00032876,2]
[400512769,1767687039040,-500.0,0.00032876,2]
[400512772,1767687039051,-500.0,0.00032876,2]
[400512774,1767687039062,-500.0,0.00032876,2]
[400512776,1767687039072,-500.0,0.00032876,2]
[400512778,1767687039083,-500.0,0.00032876,2]
[400512780,1767687039093,-500.0,0.00032876,2]
[400512782,1767687039104,-500.0,0.00032876,2]
[400512784,1767687039118,-500.0,0.00032876,2]
[400512786,1767687039129,-500.0,0.00032876,2]
[400512789,1767687039139,-500.0,0.00032876,2]
[400512791,1767687039149,-500.0,0.00032876,2]
[400512793,1767687039160,-500.0,0.00032876,2]
[400512795,1767687039170,-1261.82,0.00032876,14]
[400512797,1767687039180,-1261.82,0.00032876,14]
[400512799,1767687039191,-500.0,0.00032876,14]
[400512801,1767687039203,-500.0,0.00032876,14]
[400512803,1767687039213,-547.92492441,0.00032876,30]
[400512805,1767687039223,-500.0,0.00032876,30]
[400512807,1767687039234,-323.84650002,0.00032876,30]
[400512809,1767687039243,-422.41,0.00032876,2]
[400512811,1767687039254,-422.41,0.00032876,2]
[400512813,1767687039264,-210.25516197,0.00032876,60]
[400512815,1767687039277,-500.0,0.00032876,12]
[400512817,1767687039287,-500.0,0.00032876,12]
[400512819,1767687039298,-538.48865637,0.00032876,30]
[400512821,1767687039308,-500.0,0.00032876,60]
[400512823,1767687039319,-500.0,0.00032876,60]
[400512826,1767687039330,-500.0,0.00032876,60]
[400512829,1767687039341,-500.0,0.00032876,60]
[400512831,1767687039352,-500.0,0.00032876,7]
[400512833,1767687039362,-500.0,0.00032876,7]
[400512835,1767687039372,-500.0,0.00032876,2]
[400512837,1767687039382,-500.0,0.00032876,2]
[400512839,1767687039394,-1358.11,0.00032876,2]
[400512841,1767687039404,-1358.11,0.00032876,2]
[400512843,1767687039414,-500.0,0.00032876,14]
[400512845,1767687039425,-500.0,0.00032876,14]
[400512847,1767687039435,-864.84,0.00032876,5]
[400512849,1767687039445,-864.84,0.00032876,5]
[400512851,1767687039455,-500.0,0.00032876,2]
[400512853,1767687039466,-500.0,0.00032876,2]
[400512855,1767687039476,-353.23,0.00032876,2]
[400512857,1767687039486,-353.23,0.00032876,2]
[400512860,1767687039495,-500.0,0.00032876,2]
[400512862,1767687039505,-500.0,0.00032876,2]
[400512864,1767687039515,-545.59,0.00032876,2]
[400512866,1767687039524,-545.59,0.00032876,2]
[400512868,1767687039534,-300.0,0.00032876,2]
[400512870,1767687039544,-300.0,0.00032876,2]
[400512872,1767687039555,-299.85373399,0.00032876,20]
[400512874,1767687039565,-500.0,0.00032876,16]
[400512876,1767687039575,-500.0,0.00032876,16]
[400512878,1767687039585,-500.0,0.00032876,5]
[400512880,1767687039596,-500.0,0.00032876,5]
[400512882,1767687039606,-500.0,0.00032876,14]
[400512884,1767687039615,-500.0,0.00032876,14]
[400512886,1767687039625,-9098.57,0.00032876,14]
[400512888,1767687039635,-470.39532049,0.00032876,39]
[400512890,1767687039645,-500.0,0.00032876,3]
[400512892,1767687039655,-500.0,0.00032876,3]
[400512894,1767687039665,-500.0,0.00032876,2]
[400512896,1767687039676,-390.0,0.00032877,7]
[400512898,1767687039687,-343.43,0.00032877,2]
[400512900,1767687039697,-935.76,0.00032877,2]
[400512902,1767687039707,-226.15,0.00032877,120]
[400512904,1767687039716,-237.12745582,0.00032877,120]
[400512907,1767687039726,-167.2610602,0.00032877,120]
[400512909,1767687039736,-33322.0,0.00032877,120]
[400512911,1767687039746,-500.0,0.00032877,2]
[400512913,1767687039756,-500.0,0.00032877,7]
[400512915,1767687039765,-500.0,0.00032877,7]
[400512917,1767687039775,-500.0,0.00032877,7]
[400512919,1767687039786,-500.0,0.00032877,7]
[400512921,1767687039795,-500.0,0.00032877,7]
[400512923,1767687039805,-500.0,0.00032877,7]
[400512925,1767687039815,-500.0,0.00032877,7]
[400512927,1767687039824,-500.0,0.00032877,7]
[400512929,1767687039834,-500.0,0.00032877,7]
[400512931,1767687039845,-500.0,0.00032877,7]
[400512933,1767687039855,-500.0,0.00032877,7]
[400512935,1767687039865,-500.0,0.00032877,7]
[400512937,1767687039875,-500.0,0.00032877,7]
[400512939,1767687039885,-500.0,0.00032877,7]
[400512941,1767687039896,-500.0,0.00032877,7]
[400512944,1767687039907,-500.0,0.00032877,7]
[400512946,1767687039917,-500.0,0.00032877,7]
[400512948,1767687039927,-500.0,0.00032877,7]
[400512950,1767687039937,-500.0,0.00032877,7]
[400512952,1767687039946,-500.0,0.00032877,7]
[400512954,1767687039957,-500.0,0.00032877,7]
[400512956,1767687039970,-500.0,0.00032877,7]
[400512958,1767687039980,-500.0,0.00032877,7]
[400512960,1767687039991,-500.0,0.00032877,7]
[400512962,1767687040003,-500.0,0.00032877,7]
[400512964,1767687040013,-500.0,0.00032877,7]
[400512966,1767687040023,-500.0,0.00032877,7]
[400512968,1767687040033,-500.0,0.00032877,7]
[400512970,1767687040045,-500.0,0.00032877,7]
[400512973,1767687040055,-500.0,0.00032877,7]
[400512975,1767687040065,-500.0,0.00032877,7]
[400512977,1767687040076,-500.0,0.00032877,7]
[400512979,1767687040087,-500.0,0.00032877,7]
[400512981,1767687040097,-500.0,0.00032877,7]
[400512983,1767687040107,-500.0,0.00032877,7]
[400512985,1767687040117,-500.0,0.00032877,7]
[400512987,1767687040127,-500.0,0.00032877,7]
[400512989,1767687040137,-500.0,0.00032877,7]
[400512992,1767687040147,-500.0,0.00032877,7]
[400512994,1767687040157,-500.0,0.00032877,7]
[400513029,1767687040480,-500.0,0.00032877,7]
[400513030,1767687040496,-500.0,0.00032877,7]
[400513032,1767687040505,-500.0,0.00032877,7]
[400513034,1767687040515,-500.0,0.00032877,7]
[400513036,1767687040523,-500.0,0.00032877,7]
[400513038,1767687040532,-500.0,0.00032877,7]
[400513040,1767687040542,-500.0,0.00032877,7]
[400513042,1767687040551,-500.0,0.00032877,7]
[400513044,1767687040560,-500.0,0.00032877,7]
[400513046,1767687040569,-500.0,0.00032877,7]
[400513048,1767687040579,-500.0,0.00032877,7]
[400513050,1767687040588,-500.0,0.00032877,7]
[400513052,1767687040599,-500.0,0.00032877,7]
[400513054,1767687040608,-500.0,0.00032877,7]
[400513056,1767687040617,-500.0,0.00032877,7]
[400513058,1767687040626,-500.0,0.00032877,7]
[400513060,1767687040636,-500.0,0.00032877,7]
[400513062,1767687040646,-645.68213619,0.00032877,7]
[400513063,1767687040656,-500.0,0.00032877,7]
[400513065,1767687040666,-500.0,0.00032877,7]
[400513068,1767687040676,-500.0,0.00032877,7]
[400513069,1767687040685,-500.0,0.00032877,7]
[400513071,1767687040694,-500.0,0.00032877,7]
[400513073,1767687040703,-500.0,0.00032877,7]
[400513075,1767687040712,-500.0,0.00032877,7]
[400513077,1767687040725,-500.0,0.00032877,7]
[400513079,1767687040734,-500.0,0.00032877,7]
[400513081,1767687040743,-500.0,0.00032877,7]
[400513083,1767687040753,-400.0,0.00032877,7]
[400513085,1767687040762,-500.0,0.00032877,7]
[400513088,1767687040773,-11380.3187891,0.0003288,3]
[400513090,1767687040782,-158.54938967,0.0003289,2]
[400513092,1767687040791,-22760.6375783,0.0003289,3]
[400513093,1767687040801,-818.24,0.0003289,2]
[400513095,1767687040810,-9098.57,0.00032899,14]
[400513097,1767687040819,-31698.89212917,0.000329,30]
[400513099,1767687040828,-7663.77,0.000329,2]
[400513101,1767687040838,-1134.8,0.000329,14]
[400513103,1767687040847,-1182.7,0.000329,14]
[400513105,1767687040857,-198.87814067,0.000329,2]
[400513107,1767687040866,-352.41312839,0.000329,2]
[400513109,1767687040875,-500.0,0.00032932,2]
[400513111,1767687040884,-818.24,0.00032958,2]
[400513113,1767687040893,-500.0,0.0003296,2]
[400513115,1767687040903,-45521.2751565,0.0003296,3]
[400513117,1767687040914,-818.24,0.0003296,2]
[400513119,1767687040923,-11380.3187891,0.00032968,3]
[400513121,1767687040932,-7581.92988988,0.00032969,3]
[400513133,1767687041048,-151.0,0.000199,2]
[400513135,1767687041058,-151.0,0.000199,2]
[400513137,1767687041068,-131.56077701,0.00032969,3]
[400513139,1767687041080,-672.96138794,0.00032969,3]
[400513141,1767687041089,-2187.99099484,0.0003297,3]
[400513145,1767687041121,-1404.44569842,0.0003297,3]
[400513148,1767687041132,-698.9690269,0.0003297,3]
[400513150,1767687041143,-3464.4454591,0.0003297,3]
[400513152,1767687041155,-3624.46760984,0.0003297,3]
[400513154,1767687041164,-1593.89568627,0.0003297,3]
[400513157,1767687041183,-298.12608553,0.0003297,3]
[400513159,1767687041195,-1902.07,0.0003297,3]
[400513406,1767687043686,-1200.0,0.00023099,2]
[400513410,1767687043696,-1200.0,0.00026099,2]
[400513415,1767687043706,-3180.80171289,0.0003297,3]
[400513417,1767687043717,-13849.65644114,0.0003297,3]
[400513419,1767687043728,-969.04,0.0003297,3]
[400513421,1767687043739,-302.05042645,0.0003297,3]
[400513428,1767687043795,-12045.31601512,0.0003297,3]
[400513430,1767687043804,-13936.00005597,0.0003297,3]
[400513433,1767687043816,-1130.40073013,0.0003297,3]
[400513435,1767687043826,-575.05083245,0.0003297,3]
[400513437,1767687043839,-469.06607036,0.0003297,3]
[400513501,1767687045160,-4593.71028193,0.0003297,3]
[400513502,1767687045171,-23099.19524539,0.0003297,3]
[400513503,1767687045183,-1541.04753826,0.0003297,3]
[400513504,1767687045194,-628.28861067,0.0003297,3]
[400513508,1767687045638,-2727.0,0.0003297,3]
[400513509,1767687045650,-4660.0,0.0003297,3]
[400513510,1767687045660,-633.850205,0.0003297,3]
[400513511,1767687045671,-2505.35903128,0.0003297,3]
[400513512,1767687045681,-5360.312651,0.0003297,3]
[400513513,1767687045693,-1585.57444177,0.0003297,3]
[400513514,1767687045782,-1530.79688622,0.0003297,3]
[400513515,1767687045793,-2115.96385817,0.0003297,3]
[400513516,1767687045803,-151.0,0.00032976,14]
[400513517,1767687045812,-1261.82,0.00032978,14]
[400513518,1767687045821,-500.0,0.00032978,14]
[400513519,1767687045831,-422.41,0.00032978,2]
[400513520,1767687045840,-43.89679706,0.00032978,12]
[400513521,1767687045928,-456.10320294,0.00032978,12]
[400513522,1767687045938,-500.0,0.00032978,60]
[400513523,1767687045947,-543.00729914,0.00032978,60]
[400513524,1767687045956,-500.0,0.00032978,7]
[400513525,1767687045971,-500.0,0.00032978,2]
[400513526,1767687045980,-1358.11,0.00032978,2]
[400513527,1767687045989,-500.0,0.00032978,14]
[400513528,1767687045999,-864.84,0.00032978,5]
[400513529,1767687046010,-500.0,0.00032978,2]
[400513530,1767687046019,-353.23,0.00032978,2]
[400513531,1767687046029,-500.0,0.00032978,2]